fUSD/lending_fUSD_20250616
["ID","MTS","AMOUNT","RATE_DAILY","PERIOD"]
[366095633,1750060241517,-399.25966705,0.00016438,2]
[366095636,1750060241536,-90.74033295,0.00016438,2]
[366095638,1750060241545,-490.0,0.00016438,2]
[366095640,1750060241554,-490.0,0.00016438,2]
[366095642,1750060241564,-490.0,0.00016438,2]
[366095644,1750060241575,-517.01,0.00016438,2]
[366095646,1750060241584,-504.6,0.00016438,2]
[366095648,1750060241595,-490.0,0.00016438,2]
[366095650,1750060241608,-490.0,0.00016438,2]
[366095652,1750060241617,-490.0,0.00016438,2]
[366095654,1750060241628,-490.0,0.00016438,2]
[366095656,1750060241639,-490.0,0.00016438,2]
[366095658,1750060241649,-1408.81,0.00016438,2]
[366095660,1750060241658,-607.05,0.00016438,2]
[366095662,1750060241668,-490.0,0.00016438,2]
[366095664,1750060241677,-596.94,0.00016438,2]
[366095666,1750060241687,-1281.87,0.00016438,2]
[366095668,1750060241697,-490.0,0.00016438,2]
[366095670,1750060241706,-524.58,0.00016438,2]
[366095672,1750060241716,-490.0,0.00016438,2]
[366095674,1750060241725,-494.77,0.00016438,2]
[366095676,1750060241735,-490.0,0.00016438,2]
[366095678,1750060241744,-1619.0,0.00016438,2]
[366095680,1750060241755,-490.0,0.00016438,2]
[366095682,1750060241764,-490.0,0.00016438,2]
[366095684,1750060241773,-1040.72,0.00016438,2]
[366095686,1750060241783,-490.0,0.00016438,2]
[366095688,1750060241792,-490.0,0.00016438,2]
[366095690,1750060241802,-490.0,0.00016438,2]
[366095692,1750060241813,-490.0,0.00016438,2]
[366095694,1750060241823,-490.0,0.00016438,2]
[366095696,1750060241834,-509.85,0.00016438,2]
[366095698,1750060241843,-1097.84,0.00016438,2]
[366095700,1750060241853,-1348.39,0.00016438,2]
[366095702,1750060241862,-490.0,0.00016438,2]
[366095704,1750060241872,-562.14,0.00016438,2]
[366095706,1750060241881,-2046.27,0.00016438,2]
[366095708,1750060241891,-490.0,0.00016438,2]
[366095710,1750060241900,-491.08,0.00016438,2]
[366095712,1750060241910,-2156.23,0.00016438,2]
[366095714,1750060241919,-505.82,0.00016438,2]
[366095718,1750060241942,-490.0,0.00016438,2]
[366095720,1750060241953,-300.0,0.00016438,2]
[366095722,1750060241965,-490.0,0.00016438,2]
[366095724,1750060241975,-519.4,0.00016438,2]
[366095726,1750060241986,-490.0,0.00016438,2]
[366095728,1750060241996,-490.0,0.00016438,2]
[366095730,1750060242006,-490.0,0.00016438,2]
[366095732,1750060242016,-490.0,0.00016438,2]
[366095734,1750060242026,-622.5,0.00016438,2]
[366095736,1750060242036,-1691.14,0.00016438,2]
[366095738,1750060242046,-490.0,0.00016438,2]
[366095739,1750060242056,-681.55,0.00016438,2]
[366095741,1750060242066,-490.0,0.00016438,2]
[366095742,1750060242076,-490.0,0.00016438,2]
[366095744,1750060242086,-1569.36,0.00016438,2]
[366095746,1750060242096,-490.0,0.00016438,2]
[366095748,1750060242106,-490.0,0.00016438,2]
[366095749,1750060242115,-969.82,0.00016438,2]
[366095751,1750060242125,-490.0,0.00016438,2]
[366095753,1750060242136,-1751.58,0.00016438,2]
[366095754,1750060242145,-1050.38,0.00016438,2]
[366095756,1750060242155,-831.02,0.00016438,2]
[366095758,1750060242165,-625.97,0.00016438,2]
[366095759,1750060242175,-490.0,0.00016438,2]
[366095761,1750060242184,-490.0,0.00016438,2]
[366095763,1750060242194,-490.0,0.00016438,2]
[366095764,1750060242204,-749.95,0.00016438,2]
[366095766,1750060242214,-490.0,0.00016438,2]
[366095768,1750060242224,-957.35,0.00016438,2]
[366095769,1750060242234,-1182.88,0.00016438,2]
[366095771,1750060242243,-751.28,0.00016438,2]
[366095773,1750060242253,-490.0,0.00016438,2]
[366095775,1750060242263,-2375.53,0.00016438,2]
[366095776,1750060242273,-1207.1,0.00016438,2]
[366095778,1750060242283,-953.62,0.00016438,2]
[366095780,1750060242292,-250.0,0.00016438,2]
[366095781,1750060242302,-490.0,0.00016438,2]
[366095783,1750060242312,-2211.45,0.00016438,2]
[366095785,1750060242322,-490.0,0.00016438,2]
[366095787,1750060242333,-554.9,0.00016438,2]
[366095789,1750060242344,-1238.74,0.00016438,2]
[366095790,1750060242354,-591.1,0.00016438,2]
[366095793,1750060242371,-3362.284123,0.00016438,2]
[366095794,1750060242382,-719.38,0.00016438,2]
[366095796,1750060242393,-23259.67,0.00016438,2]
[366095798,1750060242404,-490.0,0.00016438,2]
[366095800,1750060242419,-490.0,0.00016438,2]
[366095801,1750060242429,-724.86,0.00016438,2]
[366095803,1750060242440,-490.0,0.00016438,2]
[366095805,1750060242451,-540.89,0.00016438,2]
[366095807,1750060242462,-1950.53,0.00016438,2]
[366095809,1750060242472,-577.25,0.00016438,2]
[366095811,1750060242483,-698.83,0.00016438,2]
[366095812,1750060242494,-490.0,0.00016438,2]
[366095814,1750060242506,-1287.64,0.00016438,2]
[366095816,1750060242517,-1986.82,0.00016438,2]
[366095818,1750060242527,-490.0,0.00016438,2]
[366095821,1750060242538,-490.0,0.00016438,2]
[366095824,1750060242550,-490.0,0.00016438,2]
[366095825,1750060242562,-1327.65,0.00016438,2]
[366095827,1750060242573,-1204.35,0.00016438,2]
[366095829,1750060242583,-2801.73,0.00016438,2]
[366095831,1750060242594,-490.0,0.00016438,2]
[366095833,1750060242604,-649.53,0.00016438,2]
[366095835,1750060242615,-490.0,0.00016438,2]
[366095837,1750060242626,-490.0,0.00016438,2]
[366095839,1750060242636,-936.86,0.00016438,2]
[366095841,1750060242647,-2259.262385,0.00016438,2]
[366095842,1750060242658,-1568.78,0.00016438,2]
[366095844,1750060242668,-1993.75,0.00016438,2]
[366095846,1750060242679,-554.64,0.00016438,2]
[366095849,1750060242689,-490.0,0.00016438,2]
[366095851,1750060242700,-490.0,0.00016438,2]
[366095853,1750060242710,-490.0,0.00016438,2]
[366095854,1750060242721,-490.0,0.00016438,2]
[366095856,1750060242731,-496.37,0.00016438,2]
[366095858,1750060242742,-490.0,0.00016438,2]
[366095860,1750060242752,-768.09,0.00016438,2]
[366095862,1750060242763,-1319.26,0.00016438,2]
[366095864,1750060242774,-490.0,0.00016438,2]
[366095865,1750060242785,-1624.24,0.00016438,2]
[366095867,1750060242795,-1808.29,0.00016438,2]
[366095870,1750060242812,-3454.46,0.00016438,2]
[366095871,1750060242822,-1184.2,0.00016438,2]
[366095873,1750060242833,-490.0,0.00016438,2]
[366095875,1750060242844,-490.0,0.00016438,2]
[366095877,1750060242854,-502.44,0.00016438,2]
[366095879,1750060242865,-490.0,0.00016438,2]
[366095881,1750060242876,-490.0,0.00016438,2]
[366095883,1750060242887,-3478.52,0.00016438,2]
[366095885,1750060242898,-633.11,0.00016438,2]
[366095886,1750060242908,-3621.44,0.00016438,2]
[366095888,1750060242919,-550.54,0.00016438,2]
[366095890,1750060242929,-1367.32,0.00016438,2]
[366095892,1750060242939,-490.0,0.00016438,2]
[366095894,1750060242949,-1084.79,0.00016438,2]
[366095896,1750060242959,-619.39,0.00016438,2]
[366095898,1750060242971,-490.0,0.00016438,2]
[366095899,1750060242982,-1667.23,0.00016438,2]
[366095901,1750060242994,-9057.88,0.00016438,2]
[366095903,1750060243005,-164.15426659,0.00016438,2]
[366095905,1750060243015,-1181.42,0.00016438,2]
[366095907,1750060243026,-490.0,0.00016438,2]
[366095909,1750060243037,-1434.99,0.00016438,2]
[366095911,1750060243047,-3425.85,0.00016438,2]
[366095912,1750060243058,-490.0,0.00016438,2]
[366095914,1750060243069,-4010.71,0.00016438,2]
[366095916,1750060243079,-584.64,0.00016438,2]
[366095918,1750060243090,-490.0,0.00016438,2]
[366095920,1750060243101,-490.0,0.00016438,2]
[366095922,1750060243111,-490.0,0.00016438,2]
[366095924,1750060243121,-490.0,0.00016438,2]
[366095926,1750060243132,-490.0,0.00016438,2]
[366095928,1750060243143,-626.64680467,0.00016438,2]
[366095930,1750060243153,-7425.1,0.00016438,2]
[366095932,1750060243163,-3949.32,0.00016438,2]
[366095934,1750060243174,-497.66,0.00016438,2]
[366095937,1750060243184,-2504.4,0.00016438,2]
[366095939,1750060243194,-490.0,0.00016438,2]
[366095941,1750060243204,-490.0,0.00016438,2]
[366095943,1750060243215,-1770.31,0.00016438,2]
[366095944,1750060243225,-490.0,0.00016438,2]
[366095945,1750060243241,-1222.18,0.00016438,2]
[366095946,1750060243252,-4643.41,0.00016438,2]
[366095947,1750060243264,-19260.35,0.00016438,2]
[366095948,1750060243275,-490.0,0.00016438,2]
[366095950,1750060243285,-682.19,0.00016438,2]
[366095952,1750060243296,-490.0,0.00016438,2]
[366095954,1750060243307,-1110.94,0.00016438,2]
[366095956,1750060243317,-1540.38,0.00016438,2]
[366095957,1750060243328,-490.0,0.00016438,2]
[366095958,1750060243338,-490.0,0.00016438,2]
[366095959,1750060243349,-1002.91,0.00016438,2]
[366095960,1750060243360,-8063.79,0.00016438,2]
[366095961,1750060243370,-747.15,0.00016438,2]
[366095963,1750060243381,-490.0,0.00016438,2]
[366095964,1750060243392,-490.0,0.00016438,2]
[366095965,1750060243403,-490.0,0.00016438,2]
[366095967,1750060243417,-785.22,0.00016438,2]
[366095969,1750060243428,-1257.72,0.00016438,2]
[366095971,1750060243439,-490.0,0.00016438,2]
[366095974,1750060243449,-1794.98,0.00016438,2]
[366095976,1750060243462,-342.40144143,0.00016438,2]
[366095978,1750060243472,-490.0,0.00016438,2]
[366095980,1750060243482,-490.0,0.00016438,2]
[366095982,1750060243493,-490.0,0.00016438,2]
[366095984,1750060243504,-2758.72,0.00016438,2]
[366095986,1750060243515,-5809.27,0.00016438,2]
[366095988,1750060243525,-490.0,0.00016438,2]
[366095990,1750060243535,-559.61,0.00016438,2]
[366095992,1750060243547,-490.0,0.00016438,2]
[366095995,1750060243558,-597.48,0.00016438,2]
[366095997,1750060243568,-1449.75,0.00016438,2]
[366095999,1750060243578,-490.0,0.00016438,2]
[366096001,1750060243589,-1650.89,0.00016438,2]
[366096003,1750060243600,-2436.11,0.00016438,2]
[366096005,1750060243611,-490.0,0.00016438,2]
[366096007,1750060243622,-513.17,0.00016438,2]
[366096009,1750060243632,-613.81,0.00016438,2]
[366096011,1750060243642,-1091.19,0.00016438,2]
[366096014,1750060243653,-1508.09,0.00016438,2]
[366096016,1750060243663,-658.41,0.00016438,2]
[366096018,1750060243673,-490.0,0.00016438,2]
[366096021,1750060243695,-1003.03,0.00016438,2]
[366096023,1750060243706,-1095.16,0.00016438,2]
[366096026,1750060243718,-1272.05,0.00016438,2]
[366096028,1750060243729,-2109.25,0.00016438,2]
[366096030,1750060243739,-490.0,0.00016438,2]
[366096032,1750060243750,-578.88,0.00016438,2]
[366096034,1750060243761,-932.16,0.00016438,2]
[366096036,1750060243771,-9874.35,0.00016438,2]
[366096038,1750060243782,-1822.82,0.00016438,2]
[366096040,1750060243792,-1166.79,0.00016438,2]
[366096043,1750060243803,-490.0,0.00016438,2]
[366096045,1750060243814,-490.0,0.00016438,2]
[366096047,1750060243824,-1194.09,0.00016438,2]
[366096049,1750060243834,-490.0,0.00016438,2]
[366096051,1750060243845,-635.29,0.00016438,2]
[366096053,1750060243855,-490.0,0.00016438,2]
[366096055,1750060243866,-8374.35,0.00016438,2]
[366096057,1750060243876,-490.0,0.00016438,2]
[366096059,1750060243886,-490.0,0.00016438,2]
[366096061,1750060243897,-3781.62,0.00016438,2]
[366096064,1750060243908,-490.0,0.00016438,2]
[366096066,1750060243918,-553.89259933,0.00016438,2]
[366096068,1750060243928,-465.50969884,0.00016438,2]
[366096070,1750060243939,-490.0,0.00016438,2]
[366096072,1750060243949,-1865.12,0.00016438,2]
[366096074,1750060243960,-16876.03,0.00016438,2]
[366096097,1750060244526,-490.0,0.00016438,2]
[366096098,1750060244538,-490.0,0.00016438,2]
[366096099,1750060244549,-390.0,0.00016438,2]
[366096100,1750060244560,-1918.06,0.00016438,2]
[366096101,1750060244572,-490.0,0.00016438,2]
[366096103,1750060244582,-490.0,0.00016438,2]
[366096105,1750060244591,-588.76,0.00016438,2]
[366096106,1750060244601,-1748.91,0.00016438,2]
[366096108,1750060244612,-2075.2,0.00016438,2]
[366096109,1750060244622,-986.48,0.00016438,2]
[366096110,1750060244632,-597.07,0.00016438,2]
[366096111,1750060244643,-2170.84,0.00016438,2]
[366096112,1750060244652,-1171.71,0.00016438,2]
[366096113,1750060244663,-490.0,0.00016438,2]
[366096114,1750060244672,-490.0,0.00016438,2]
[366096115,1750060244682,-3236.26,0.00016438,2]
[366096116,1750060244692,-833.38,0.00016438,2]
[366096117,1750060244702,-3534.24,0.00016438,2]
[366096118,1750060244712,-490.0,0.00016438,2]
[366096119,1750060244724,-1578.3,0.00016438,2]
[366096120,1750060244734,-490.0,0.00016438,2]
[366096121,1750060244744,-1025.42,0.00016438,2]
[366096122,1750060244755,-378.77450442,0.00016438,2]
[366096123,1750060244766,-490.0,0.00016438,2]
[366096124,1750060244778,-1677.31,0.00016438,2]
[366096125,1750060244789,-490.0,0.00016438,2]
[366096126,1750060244799,-4786.08,0.00016438,2]
[366096127,1750060244809,-490.0,0.00016438,2]
[366096128,1750060244819,-1286.83,0.00016438,2]
[366096129,1750060244829,-1312.53,0.00016438,2]
[366096130,1750060244839,-844.92,0.00016438,2]
[366096131,1750060244849,-1510.68,0.00016438,2]
[366096132,1750060244859,-490.0,0.00016438,2]
[366096133,1750060244869,-543.84,0.00016438,2]
[366096134,1750060244879,-2532.68,0.00016438,2]
[366096135,1750060244890,-490.0,0.00016438,2]
[366096136,1750060244900,-995.24,0.00016438,2]
[366096137,1750060244910,-490.0,0.00016438,2]
[366096138,1750060244920,-1980.27,0.00016438,2]
[366096139,1750060244930,-891.04,0.00016438,2]
[366096140,1750060244940,-490.0,0.00016438,2]
[366096141,1750060244951,-490.0,0.00016438,2]
[366096142,1750060244961,-490.0,0.00016438,2]
[366096143,1750060244971,-490.0,0.00016438,2]
[366096144,1750060244981,-500.0,0.00016438,2]
[366096145,1750060244991,-500.0,0.00016438,2]
[366096146,1750060245002,-500.0,0.00016438,2]
[366096147,1750060245013,-6583.43,0.00016438,2]
[366096148,1750060245023,-2252.83,0.00016438,2]
[366096149,1750060245034,-490.0,0.00016438,2]
[366096150,1750060245044,-490.0,0.00016438,2]
[366096151,1750060245054,-918.92,0.00016438,2]
[366096152,1750060245065,-2851.02,0.00016438,2]
[366096153,1750060245075,-490.0,0.00016438,2]
[366096154,1750060245085,-490.0,0.00016438,2]
[366096155,1750060245095,-490.0,0.00016438,2]
[366096156,1750060245105,-490.0,0.00016438,2]
[366096157,1750060245115,-780.67,0.00016438,2]
[366096158,1750060245126,-1890.33,0.00016438,2]
[366096159,1750060245137,-490.0,0.00016438,2]
[366096160,1750060245147,-1062.55,0.00016438,2]
[366096161,1750060245156,-490.0,0.00016438,2]
[366096162,1750060245167,-2325.76,0.00016438,2]
[366096163,1750060245177,-4434.53,0.00016438,2]
[366096164,1750060245187,-5589.25,0.00016438,2]
[366096165,1750060245198,-490.0,0.00016438,2]
[366096166,1750060245208,-490.0,0.00016438,2]
[366096167,1750060245217,-490.0,0.00016438,2]
[366096168,1750060245227,-490.0,0.00016438,2]
[366096169,1750060245237,-1097.11,0.00016438,2]
[366096170,1750060245247,-2557.96,0.00016438,2]
[366096171,1750060245257,-618.11,0.00016438,2]
[366096172,1750060245266,-490.0,0.00016438,2]
[366096173,1750060245278,-490.0,0.00016438,2]
[366096174,1750060245289,-22984.15,0.00016438,2]
[366096175,1750060245300,-1869.4,0.00016438,2]
[366096176,1750060245311,-528.61,0.00016438,2]
[366096177,1750060245321,-1657.81,0.00016438,2]
[366096178,1750060245331,-2737.55,0.00016438,2]
[366096179,1750060245341,-562.93,0.00016438,2]
[366096180,1750060245351,-490.0,0.00016438,2]
[366096181,1750060245361,-490.0,0.00016438,2]
[366096182,1750060245371,-578.57,0.00016438,2]
[366096183,1750060245380,-490.0,0.00016438,2]
[366096184,1750060245390,-7832.21,0.00016438,2]
[366096185,1750060245401,-3901.14,0.00016438,2]
[366096186,1750060245413,-2636.0,0.00016438,2]
[366096187,1750060245423,-1123.79,0.00016438,2]
[366096188,1750060245433,-1007.51,0.00016438,2]
[366096189,1750060245442,-6361.94,0.00016438,2]
[366096190,1750060245453,-549.61,0.00016438,2]
[366096191,1750060245463,-860.99,0.00016438,2]
[366096192,1750060245474,-488.45936412,0.00016438,2]
[366096193,1750060245483,-10038.92,0.00016438,2]
[366096194,1750060245495,-1818.32,0.00016438,2]
[366096195,1750060245506,-490.0,0.00016438,2]
[366096196,1750060245516,-490.0,0.00016438,2]
[366096197,1750060245525,-738.71,0.00016438,2]
[366096198,1750060245535,-2250.59,0.00016438,2]
[366096199,1750060245545,-1499.17,0.00016438,2]
[366096200,1750060245555,-703.03,0.00016438,2]
[366096201,1750060245564,-498.43915613,0.00016438,2]
[366096202,1750060245575,-1971.39,0.00016438,2]
[366096203,1750060245585,-469.88593366,0.00016438,2]
[366096204,1750060245596,-1742.64,0.00016438,2]
[366096205,1750060245605,-1159.98,0.00016438,2]
[366096206,1750060245615,-1557.67,0.00016438,2]
[366096208,1750060245625,-914.9,0.00016438,2]
[366096209,1750060245635,-490.0,0.00016438,2]
[366096210,1750060245644,-490.0,0.00016438,2]
[366096211,1750060245654,-490.0,0.00016438,2]
[366096212,1750060245664,-4089.98,0.00016438,2]
[366096213,1750060245674,-830.71,0.00016438,2]
[366096214,1750060245684,-10901.68,0.00016438,2]
[366096215,1750060245693,-490.0,0.00016438,2]
[366096217,1750060245703,-490.0,0.00016438,2]
[366096219,1750060245713,-829.28,0.00016438,2]
[366096220,1750060245723,-490.0,0.00016438,2]
[366096222,1750060245733,-1121.58,0.00016438,2]
[366096224,1750060245742,-4040.58,0.00016438,2]
[366096225,1750060245752,-490.0,0.00016438,2]
[366096226,1750060245762,-510.15,0.00016438,2]
[366096228,1750060245771,-767.31,0.00016438,2]
[366096229,1750060245781,-490.0,0.00016438,2]
[366096230,1750060245791,-854.11,0.00016438,2]
[366096231,1750060245801,-900.73,0.00016438,2]
[366096232,1750060245810,-1273.95,0.00016438,2]
[366096233,1750060245820,-3710.28,0.00016438,2]
[366096234,1750060245829,-490.0,0.00016438,2]
[366096235,1750060245839,-506.8,0.00016438,2]
[366096236,1750060245850,-1911.72,0.00016438,2]
[366096237,1750060245859,-490.0,0.00016438,2]
[366096238,1750060245868,-491.97,0.00016438,2]
[366096239,1750060245878,-1272.0,0.00016438,2]
[366096240,1750060245887,-490.0,0.00016438,2]
[366096241,1750060245897,-1122.97,0.00016438,2]
[366096242,1750060245907,-409.16927831,0.00016438,2]
[366096243,1750060245916,-6292.99,0.00016438,2]
[366096244,1750060245926,-490.0,0.00016438,2]
[366096245,1750060245936,-490.0,0.00016438,2]
[366096246,1750060245945,-3175.61,0.00016438,2]
[366096247,1750060245956,-1638.28,0.00016438,2]
[366096248,1750060245966,-2576.54,0.00016438,2]
[366096249,1750060245976,-800.38,0.00016438,2]
[366096250,1750060245985,-490.0,0.00016438,2]
[366096251,1750060245995,-664.1,0.00016438,2]
[366096252,1750060246005,-1285.52,0.00016438,2]
[366096253,1750060246014,-905.24,0.00016438,2]
[366096254,1750060246024,-3207.13,0.00016438,2]
[366096255,1750060246034,-1622.92,0.00016438,2]
[366096256,1750060246044,-1367.31,0.00016438,2]
[366096257,1750060246054,-490.0,0.00016438,2]
[366096258,1750060246063,-1603.56,0.00016438,2]
[366096259,1750060246073,-569.57,0.00016438,2]
[366096260,1750060246082,-1349.8,0.00016438,2]
[366096261,1750060246092,-1226.02,0.00016438,2]
[366096262,1750060246102,-383.68625239,0.00016438,2]
[366096263,1750060246112,-536.57,0.00016438,2]
[366096264,1750060246121,-617.38,0.00016438,2]
[366096265,1750060246131,-490.0,0.00016438,2]
[366096266,1750060246141,-1340.92,0.00016438,2]
[366096267,1750060246151,-1606.45,0.00016438,2]
[366096268,1750060246161,-1000.0,0.00016438,2]
[366096269,1750060246171,-1000.0,0.00016438,2]
[366096270,1750060246180,-1000.0,0.00016438,2]
[366096271,1750060246190,-1000.0,0.00016438,2]
[366096272,1750060246200,-1000.0,0.00016438,2]
[366096273,1750060246210,-1000.0,0.00016438,2]
[366096274,1750060246220,-1000.0,0.00016438,2]
[366096275,1750060246229,-1000.0,0.00016438,2]
[366096276,1750060246239,-1000.0,0.00016438,2]
[366096277,1750060246249,-1000.0,0.00016438,2]
[366096278,1750060246260,-1000.0,0.00016438,2]
[366096279,1750060246269,-1000.0,0.00016438,2]
[366096280,1750060246279,-1000.0,0.00016438,2]
[366096281,1750060246289,-1000.0,0.00016438,2]
[366096282,1750060246299,-1000.0,0.00016438,2]
[366096283,1750060246308,-1000.0,0.00016438,2]
[366096284,1750060246317,-1000.0,0.00016438,2]
[366096285,1750060246327,-1000.0,0.00016438,2]
[366096286,1750060246337,-1000.0,0.00016438,2]
[366096287,1750060246347,-1000.0,0.00016438,2]
[366096288,1750060246356,-1000.0,0.00016438,2]
[366096289,1750060246365,-1000.0,0.00016438,2]
[366096290,1750060246375,-1000.0,0.00016438,2]
[366096291,1750060246384,-1000.0,0.00016438,2]
[366096292,1750060246393,-1000.0,0.00016438,2]
[366096293,1750060246403,-1004.0,0.00016438,2]
[366096294,1750060246415,-150.0,0.00016438,2]
[366096295,1750060246425,-797.51,0.000165,2]
[366096296,1750060246434,-500.0,0.000165,6]
[366096297,1750060246444,-833.8156298,0.00016507,2]
[366096298,1750060246455,-506.0,0.00016521,2]
[366096300,1750060246464,-19301.83463362,0.00016535,2]
[366096302,1750060246474,-290.7314167,0.00016592,2]
[366096304,1750060246484,-1776.95,0.000166,2]
[366096306,1750060246494,-3000.0,0.000166,2]
[366096308,1750060246505,-3000.0,0.000166,2]
[366096310,1750060246516,-3000.0,0.000166,2]
[366096312,1750060246525,-3000.0,0.000166,2]
[366096314,1750060246535,-3000.0,0.000166,2]
[366096316,1750060246544,-3110.34,0.000166,2]
[366096318,1750060246553,-2329.34,0.000166,2]
[366096320,1750060246563,-925.39,0.000166,2]
[366096322,1750060246572,-797.51,0.000166,2]
[366096324,1750060246583,-797.51,0.000166,2]
[366096326,1750060246592,-461.62,0.000166,2]
[366096328,1750060246602,-500.0,0.000166,6]
[366096330,1750060246613,-207.18,0.00016601,2]
[366096332,1750060246622,-746.03,0.00016601,2]
[366096334,1750060246632,-998.99,0.00016601,2]
[366096336,1750060246642,-16756.32,0.00016601,2]
[366096338,1750060246651,-938.1,0.00016601,2]
[366096340,1750060246661,-3557.21,0.00016601,2]
[366096342,1750060246670,-1433.2,0.00016601,2]
[366096344,1750060246680,-471.88797676,0.00016601,2]
[366096346,1750060246689,-3113.71,0.00016601,2]
[366096348,1750060246699,-2196.91,0.00016601,2]
[366096350,1750060246709,-2243.35,0.00016601,2]
[366096352,1750060246718,-1423.49,0.00016601,2]
[366096354,1750060246729,-4126.33,0.00016601,2]
[366096356,1750060246739,-258.515498,0.00016602,2]
[366096358,1750060246748,-258.515498,0.00016602,2]
[366096360,1750060246758,-151.0,0.00016602,2]
[366096362,1750060246767,-159.750425,0.00016602,2]
[366096364,1750060246777,-159.750425,0.00016602,2]
[366096366,1750060246788,-491.36768013,0.00016602,2]
[366096368,1750060246797,-151.0,0.00016602,2]
[366096370,1750060246807,-553.70555967,0.00016602,2]
[366096372,1750060246816,-940.963004,0.00016602,2]
[366096374,1750060246826,-940.963004,0.00016602,2]
[366096376,1750060246835,-527.14,0.00016602,2]
[366096378,1750060246845,-490.0,0.00016602,2]
[366096380,1750060246854,-490.0,0.00016602,2]
[366096382,1750060246863,-595.05,0.00016602,2]
[366096384,1750060246873,-490.0,0.00016602,2]
[366096386,1750060246883,-490.0,0.00016602,2]
[366096388,1750060246892,-732.24,0.00016602,2]
[366096390,1750060246902,-490.0,0.00016602,2]
[366096392,1750060246911,-490.0,0.00016602,2]
[366096394,1750060246921,-490.0,0.00016602,2]
[366096396,1750060246931,-490.0,0.00016602,2]
[366096398,1750060246940,-490.0,0.00016602,2]
[366096400,1750060246949,-616.67,0.00016602,2]
[366096410,1750060247040,-490.0,0.00016602,2]
[366096412,1750060247054,-1817.226109,0.00016602,2]
[366096415,1750060247064,-490.0,0.00016602,2]
[366096416,1750060247073,-490.0,0.00016602,2]
[366096419,1750060247083,-490.0,0.00016602,2]
[366096420,1750060247093,-1817.226109,0.00016602,2]
[366096422,1750060247102,-573.67,0.00016602,2]
[366096424,1750060247111,-490.0,0.00016602,2]
[366096427,1750060247121,-490.0,0.00016602,2]
[366096429,1750060247131,-490.0,0.00016602,2]
[366096431,1750060247141,-490.0,0.00016602,2]
[366096433,1750060247150,-490.0,0.00016602,2]
[366096435,1750060247160,-490.0,0.00016602,2]
[366096436,1750060247169,-490.0,0.00016602,2]
[366096439,1750060247179,-490.0,0.00016602,2]
[366096441,1750060247188,-490.0,0.00016602,2]
[366096443,1750060247198,-490.0,0.00016602,2]
[366096445,1750060247207,-490.0,0.00016602,2]
[366096447,1750060247217,-490.0,0.00016602,2]
[366096449,1750060247226,-490.0,0.00016602,2]
[366096450,1750060247236,-490.0,0.00016602,2]
[366096453,1750060247246,-653.12,0.00016602,2]
[366096454,1750060247256,-545.19,0.00016602,2]
[366096456,1750060247265,-490.0,0.00016602,2]
[366096458,1750060247274,-490.0,0.00016602,2]
[366096460,1750060247283,-490.0,0.00016602,2]